{"text_format":"1","workbook":"xlsx","n_sheets":1,"sheets":["Wniosek"],"not_rendered":{"charts":0,"images":1,"macros":1,"external_links":0,"defined_names":1,"comments":0,"pivot_tables":0},"unopened":[],"bounds":{"document_bytes":16777216,"sheet_cells":100000,"rows_first":2000,"rows_last":500,"rows_between":2000,"halvings":0,"cell_chars":16384,"cell_head_chars":4096},"cells_cut":0,"cells_raw":0,"read":"whole","date_system":"1900"}

{"sheet":"Wniosek","index":0,"n_rows":92,"n_cols":11,"rows_kept":92,"cut":false,"hidden":false,"merged":[[0,7,0,8],[91,6,91,7],[91,0,91,1],[67,1,67,7],[13,5,13,6],[14,1,14,2],[13,7,13,8],[14,5,14,6],[60,1,60,7],[84,1,84,7],[24,6,24,8],[25,6,25,8],[26,1,26,5],[26,6,26,8],[27,1,27,5],[37,1,38,1],[37,2,38,2],[37,3,38,4],[36,6,36,8],[35,0,35,8],[31,0,31,8],[32,0,32,5],[28,1,28,2],[19,1,19,8],[13,0,18,0],[89,0,90,1],[89,5,90,8],[45,1,47,1],[41,3,41,4],[39,3,39,4],[40,3,40,4],[65,1,65,7],[62,0,65,0],[62,8,65,8],[49,0,49,6],[56,0,59,0],[56,8,59,8],[54,0,54,8],[74,1,74,7],[52,6,52,7],[49,7,49,8],[72,1,72,7],[70,1,70,7],[66,1,66,7],[87,1,87,8],[79,1,79,7],[83,1,83,7],[80,1,80,7],[81,1,81,7],[1,0,1,8],[2,0,2,8],[3,0,3,8],[4,0,4,8],[8,1,8,8],[6,0,6,8],[5,0,5,8],[27,6,27,8],[20,1,20,8],[12,1,12,8],[23,1,23,8],[24,1,24,2],[24,3,24,5],[25,1,25,2],[25,3,25,5],[24,0,27,0],[13,1,13,2],[13,3,13,4],[9,1,9,4],[16,1,16,2],[18,2,18,3],[16,3,16,5],[22,1,22,8],[78,1,78,7],[86,0,86,8],[73,0,73,8],[69,1,69,7],[71,1,71,7],[75,1,75,7],[76,1,76,7],[7,0,7,8],[17,6,17,7],[17,4,17,5],[18,4,18,5],[18,6,18,7],[34,0,34,5],[9,6,9,8],[10,0,10,8],[11,1,11,8],[14,7,14,8],[15,1,15,2],[15,3,15,5],[14,3,14,4],[28,0,30,0],[28,6,28,8],[17,2,17,3],[21,1,21,8],[61,1,61,7],[62,1,62,7],[63,1,63,7],[43,3,43,4],[85,1,85,7],[57,1,57,7],[58,1,58,7],[59,1,59,7],[77,1,77,7],[55,1,55,7],[48,0,48,5],[44,3,44,4],[64,1,64,7],[56,1,56,7],[68,1,68,8],[53,1,53,8],[51,0,51,2],[51,5,51,8],[45,2,47,2],[45,3,47,4],[45,5,47,5],[45,6,47,6],[82,1,82,7],[45,7,47,7],[45,8,47,8],[45,0,47,0],[28,3,28,5],[32,6,32,8],[29,1,30,2],[29,3,30,5],[29,6,30,8],[36,0,36,4],[33,6,33,8],[34,6,34,8],[37,6,37,8],[37,0,38,0],[42,3,42,4],[37,5,38,5],[33,0,33,5]]}
[null,null,null,null,null,null,null,"załącznik nr 1 do regulaminu udzielania grantu"]
[null,null,null,null,null,null,null,null,null,null,"wybierz z listy"]
["Wniosek o przyznanie grantu 1\nMałopolska Tarcza Antykryzysowa – Pakiet Edukacyjny. Cyfryzacja szkół i placówek oświatowych",null,null,null,null,null,null,null,null,null,"JST"]
["W RAMACH  10 OSI PRIORYTETOWEJ WIEDZA I KOMPETENCJE ",null,null,null,null,null,null,null,null,null,"organizacja pozarządowa"]
["Działanie 10.1 ROZWÓJ KSZTAŁCENIA OGÓLNEGO\nPoddziałanie 10.1.6  Cyfryzacja szkół prowadzących kształcenie ogólne  typ A. granty na zakup sprzętu do nauki zdalnej – Małopolska Tarcza Antykryzysowa – Pakiet Edukacyjny\nRegionalny Program Operacyjny Województwa Małpolskiego na lata 2014-2020\n",null,null,null,null,null,null,null,null,null,"jednostka administracji rządowej"]
["UWAGA ! Pola szare są zablokowane do edycji  ",null,null,null,null,null,null,null,null,null,"placówka systemu oświaty"]
["UWAGA !  Należy wypełnić tylko pola zaznaczone na żółto",null,null,null,null,null,null,null,null,null,"inne"]
["Uwaga! Pola pomarańczowe liczą się automatycznie"]
["Nr wniosku",null,null,null,null,null,null,null,null,null,"2020-09-28T13:48:05"]
["Data wpływu wniosku",null,null,null,null,"Godzina wpływu wniosku ",null,null,null,null,"13:48:05"]
["1. Informacje o Wnioskodawcy"]
["Nazwa Wnioskodawcy"]
["Typ instytucji","wybierz z listy",null,null,null,null,null,null,null,null,{"$f":"CONCATENATE(B12,\" \",TEXT(K9,\"dd-mm-rrrr\"),\" \",TEXT(K9,\"gg:mm:ss\"),)","v":" 28-09-2020 13:48:05"}]
["Dane wnioskodawcy","Kraj↓",null,"Województwo↓",null,"Powiat↓",null,"Gmina↓"]
[]
[null,"Miejscowość ↓",null,"Ulica↓",null,null,"Kod pocztowy↓","Nr budynku↓","Numer lokalu↓"]
[]
[null,"Regonâ","KRS â",null,"Telefon kontaktowy↓",null,"NIP â",null,"Obszar wg stopnia urbanizacji (DEGURBA)↓",null,"TAK"]
[null,null,null,null,null,null,null,null,null,null,"NIE"]
["Adres e-mail"]
["Numer rachunku bankowego Wnioskodawcy"]
["Suma kontrolna:"]
["Suma kontrolna:",{"$f":"IF(B22=0,\"\",B22)","v":""}]
["Nazwa Banku"]
["Osoba do kontaktów roboczych","Imię↓",null,"Nazwisko↓",null,null,"Stanowisko↓"]
[]
[null,"Adres e-mail↓",null,null,null,null,"Telefon↓"]
[]
["Osoba upoważniona do podejmowania wiążacych decyzji w imieniu grantobiorcy  w tym podpisująca niniejszy wniosek i upoważniona do podpisania umowy.","Imię↓",null,"Nazwisko↓",null,null,"Stanowisko↓"]
[]
[]
["2.  Informacje niezbędne do oceny i sprawdzenia wniosku"]
["Planowana liczba szkół i placówek systemu oświaty wyposażonych w ramach programu w sprzęt TIK do prowadzenia zajęć edukacyjnych"]
["Dochód na 1 mieszkańca w danej gminie/powiecie za 2019 rok, zgodnie z  danymi Banku Danych Lokalnych prowadzonego przez Główny Urząd Statystyczny znajdującymi się na stronie: https://bdl.stat.gov.pl/BDL/dane/podgrup/tablica"]
["Planowana liczba szkół i placówek systemu oświaty, która będzie wykorzystywać sprzęt TIK do prowadzenia zajęć edukacyjnych (dana co do zasady powinna być tożsama z liczbą szkół/placówek wyposażonych w sprzęt komputerowy)"]
["3.  Planowany do zakupienia sprzęt komputerowy - budżet"]
["Posiadam możliwość odzyskania VAT w zakresie wydatków ponoszonych w ramach zadania grantowego (TAK/NIE)"]
["Lp.","Rodzaj sprzętu (TIK)","Cena jednostkowa (netto)","Jednostka miary (sztuka, umowa itp.)",null,"ilość","Planowany budżet zadania grantowego"]
[null,null,null,null,null,null,"Netto (cena jednostkowa x ilość)","VAT (0 %, inna stawka lub zwolniony)","Brutto"]
["1.","Komputer typu ALL in ONE ",null,null,null,null,{"$f":"C40*F40","v":0},null,{"$f":"IFERROR(G40*(1+H40),G40)","v":0}]
["2.","Laptop",null,null,null,null,{"$f":"C41*F41","v":0},null,{"$f":"IFERROR(G41*(1+H41),G41)","v":0}]
["3.","Tablet ",null,null,null,null,0,null,0]
["4.","Oprogramowanie",null,null,null,null,0,null,0]
["5.","Ubezpieczenie sprzętu",null,null,null,null,0,null,0]
["6.","Usługi zapewniające dostęp do Internetu",null,null,null,null,0,null,0]
["7.","Inne niezbędne urządzenia peryferyjne i akcesoria  umożliwiające pracę zdalną, w tym niezbędne akcesoria i oprogramowanie dla osób z niepełnosprawnościami",null,null,null,null,0,null,0]
[]
[]
["Łącznie",null,null,null,null,null,{"$f":"SUM(G40:G48)","v":0},null,{"$f":"SUM(I40:I48)","v":0}]
["Wnioskowana kwota \nUwaga !  Jeśli  możesz odzyskać VAT,  to wykazujesz i rozliczasz  kwoty Netto (VAT jest niekwalifikowany), jeśli  nie możesz odzyskać VAT, to wykazujesz i rozliczasz kwoty Brutto (VAT jest kwalifikowany)",null,null,null,null,null,null,{"$f":"IF(F37=\"TAK\",G49,I49)","v":0}]
[]
[]
[null,"data",null,null,null,null,"podpis Wnioskodawcy"]
["Suma kontrolna:",{"$f":"IF(B22=0,\"\",B22)","v":""}]
["Oświadczenia  dotyczące spełnienia kryteriów podlegających  ocenie formalnej "]
["Lp.","Treść oświadczeń",null,null,null,null,null,null,"TAK/NIE"]
["1.","Oświadczam, że w zakresie niniejszego grantu nie dojdzie do podwójnego finansowania wydatków, tj. dofinansowanie otrzymane w formie stawki jednostkowej w ramach niniejszego grantu nie zostanie przeznaczone na: "]
[null,"a)     całkowite lub częściowe, zrefundowanie lub rozliczenie tego samego wydatku dwukrotnie ze środków publicznych krajowych bądź europejskich, "]
[null,"b)    sfinansowanie kosztów objętych niekomercyjnym wsparciem pożyczkowym, kredytowym bądź gwarancyjnym; "]
[null,"c)     zapłacenie podatków, w tym podatku VAT lub innej opłaty w sytuacji kiedy istnieje prawna możliwość ich odzyskania. "]
["2.","Oświadczam, że dane osobowe zawarte w niniejszym wniosku przetwarzam w sposób zgodny z Rozporządzeniem Parlamentu Europejskiego i Rady (UE) 2016/679 z dnia 27 kwietnia 2016 r. w sprawie ochrony osób fizycznych w związku z przetwarzaniem danych osobowych i w sprawie swobodnego przepływu takich danych oraz uchylenia dyrektywy 95/46/WE  (Dz. Urz. UE L 119 z 04.05.2016, str. 1 z późn. zm.) Oświadczam, że Wnioskodawca przekaże w imieniu Administratorów w rozumieniu art. 4 pkt 7) RODO, klauzulę informacyjną, o której mowa w art. 13 i 14 RODO, zgodnie ze wzorem określonym w Regulamininie w § 14 ust. 4 wszystkim osobom, których dane osobowe są przetwarzane we wniosku o grant, umowie powierzenia grantu i wniosku rozliczajacym grant. ",null,null,null,null,null,null," "]
["3.","Oświadczam, że nie ciąży na mnie obowiązek zwrotu pomocy wynikający z wcześniejszej decyzji Komisji uznającej pomoc za niezgodną z prawem oraz z rynkiem wewnętrznym.     ",null,null,null,null,null,null," "]
["4.","Oświadczam, że w przypadku zakupu używanego sprzętu, zgodnie z regulaminem,  zostaną spełnione  łącznie następujące warunki:"]
[null,"a) cena zakupu używanego środka trwałego nie przekracza jego wartości rynkowej i jest niższa niż koszt podobnego nowego sprzętu,"]
[null,"b) sprzedający środek trwały wystawił deklarację określającą jego pochodzenie,"]
[null,"c) sprzedający środek trwały potwierdził w deklaracji, że dany środek nie był w okresie poprzednich 7 lat (liczonych w miesiącach kalendarzowych od daty rozliczenia wydatku) współfinansowany z pomocy UE lub w ramach dotacji z krajowych środków publicznych."]
["5.","Oświadczam, że zakupiony sprzęt komputerowy zostanie przekazany do szkół  i  będzie wykorzystywany do wsparcia realizacji zajęć dydaktycznych w szczególności do nauczania zdalnego."]
["6.","Oświadczam, iż uwzględniam we wniosku o przyznanie grantu tylko potrzeby tych szkół/placówek, które nie otrzymały lub nie otrzymają dofinansowania na sprzęt komputerowy albo otrzymały lub otrzymają dofinansowanie poniżej swoich potrzeb w ramach konkursów grantowych ogłoszonych przez Ministerstwo Cyfryzacji lub innych projektów dofinansowanych w ramach środków UE."]
["Suma kontrolna:",{"$f":"IF(B22=0,\"\",B22)","v":""}]
["7.","Oświadczam, iż jestem uprawnionym podmiotem, ktory złożył wniosek o przyznanie grantu, bedącym organem prowadzącym publiczne i niepubliczne szkoły podstawowe, ponadpodstawowe oraz placówki systemu oświaty prowadzące kształcenie ogólne (z wyłaczeniem szkół zawodowych) , które są zlokalizowane na terenie Województwa Małopolskiego."]
["8.","Oświadczam, iż posiadam zatwierdzoną przez organ prowadzący diagnozę potrzeb szkół/placówek na sprzęt komputerowy."]
["9.","Oświadczam, że na podstawie art. 12 ust. 1 pkt. 1 ustawy z dnia 15 czerwca 2012 r. o skutkach powierzania wykonywania pracy cudzoziemcom przebywającym wbrew przepisom na terytorium Rzeczypospolitej Polskiej (Dz. U. z 2012 r., poz. 769) oraz na podstawie art. 9 ust. 1 pkt 2a ustawy z dnia 28 października 2002 r. o odpowiedzialności podmiotów zbiorowych za czyny zabronione pod groźbą kary (t.j. Dz. U. z 2020 r. poz. 358.), art. 207 ust. 4 ustawy z dnia 27 sierpnia 2009 r. o finansach publicznych (t.j. Dz.U. z 2019 r. poz. 869 z późn. zm.) nie mam zakazu dostępu do środków, o których mowa w art. 5 ust. 3 pkt 1 i 4 ustawy z dnia 27 sierpnia 2009 r. o finansach publicznych (t.j. Dz. U. z 2019 r. poz. 869 z późn. zm.)."]
["10.","Oświadczam, iż zapewniam sprzęt komputerowy zgodnie z minimalnymi i maksymalnymi wymaganiami określonymi w załączniku do Umowy o powierzenie Grantu. "]
["Oświadczenia pozostałe "]
["11.","W imieniu podmiotu, który reprezentuję dobrowolnie deklaruję uczestnictwo w projekcie grantowym pn. „Małopolska Tarcza Antykryzysowa – Pakiet Edukacyjny. Cyfryzacja szkół i placówek oświatowych”  realizowanym przez  Województwo Małopolskie – Departament Edukacji Urzędu Marszałkowskiego Województwa Małopolskiego w ramach Regionalnego Programu Operacyjnego Województwa Małopolskiego 2014-2020 współfinansowanego ze środków Europejskiego Funduszu Społecznego."]
["12.","Oświadczam, że informacje zawarte w niniejszym wniosku, oświadczeniach są zgodne ze stanem faktycznym i prawnym. Oświadczam, że jest mi znana odpowiedzialność karna za przedłożenie fałszywych lub stwierdzających nieprawdę dokumentów albo nierzetelnego oświadczenia dotyczącego okoliczności mających istotne znaczenie dla uzyskania dofinansowania w ramach niniejszego konkursu wynikająca z art. 286 oraz z art. 297 ustawy z dnia 6 czerwca 1997 roku - Kodeks karny (tj. Dz.U. z 2019 r. poz. 1950 z późn. zm.). ",null,null,null,null,null,null," "]
["13.","Oświadczam, iż zapoznałem(-am) się z Regulamin udzielania grantów w ramach projektu grantowego „Małopolska Tarcza Antykryzysowa – Pakiet Edukacyjny. Cyfryzacja szkół i placówek oświatowych” i akceptuję postanowienia w nim zawarte. ",null,null,null,null,null,null," "]
["14.","Oświadczam, że zapoznałem(-am) się ze wzorem umowy o przyznanie grantu oraz przyjmuję do wiadomości, iż w przypadku podpisania umowy o przyznanie grantu wydatki będą podlegały dofinansowaniu na zasadach w niej określonych. "]
["15.","Oświadczam, że jestem świadomy, iż wskazaną formą komunikacji i dokonywania czynności w postępowaniu w zakresie przyznania dofinansowania, jest forma elektroniczna, realizowana za pomocą poczty elektronicznej. Oświadczam, iż jestem świadomy, że niezachowanie wskazanej formy komunikacji skutkuje pozostawieniem pisma bez rozpatrzenia, a czynność dokonana w inny sposób nie wywołuje skutków. "]
["16.","Oświadczam, że przed zawarciem umowy o przyznanie grantu, poinformuję pisemnie Departament Edukacji Urzędu Marszałkowskiego WM o wszelkich zmianach w oświadczeniach i dokumentacji powstałych w okresie pomiędzy złożeniem Wniosku a podpisaniem Umowy. "]
["17.","Oświadczam, że będę przechowywał/-a w swojej siedzibie dokumentację dotyczącą wniosku o przyznanie grantu  przez okres wskazany w umowie o powierzenie grantu. "]
["18.","Oświadczam, że podany rachunek bankowy jest rachunkiem aktywnym. Jednocześnie proszę o przekazanie dotacji na ten rachunek bankowy."]
["19.","Oświadczam, że nie posiadam możliwości odzyskania podatku VAT."]
["20.","Wyrażam zgodę na doręczanie pism za pośrednictwem poczty elektronicznej  wskazanej we wniosku. "]
["21.","Wyrażam zgodę na udostępnienie niniejszego wniosku innym uprawnionym instytucjom oraz osobom dokonującym ewaluacji i oceny oraz wyrażam zgodę na udział w badaniach ewaluacyjnych mających na celu ocenę Regionalnego Programu Operacyjnego Województwa Małopolskiego na lata 2014-2020."]
["22.","Oświadczam, że na dzień 31 grudnia 2019 r. nie zalegałem z płatnościami podatków i składek na ubezpieczenia zdrowotne i społeczne. ",null,null,null,null,null,null," "]
["Na etapie składnia wniosku w formie elekronicznej nie ma wymogu podpisania wniosku.\nPamiętaj, że przed podpisaniem umowy o powierzenie grantu  zobowiązany będziesz podpisać wniosek, potwierdzając jednocześnie prawdziwość tych oświadczeń. \n"]
["Suma kontrolna:",{"$f":"IF(B22=0,\"\",B22)","v":""}]
[" "]
[]
[]
["data",null,null,null,null,null,"podpis Wnioskodawcy"]